fUST/lending_fUST_20250718
["ID","MTS","AMOUNT","RATE_DAILY","PERIOD"]
[372820062,1752772240357,-223.08042712,0.00016676,2]
[372820063,1752772240367,-500.0,0.00016676,2]
[372820064,1752772240377,-500.0,0.00016676,2]
[372820065,1752772240387,-416.31601608,0.00016676,2]
[372820066,1752772240396,-500.0,0.00016676,2]
[372820067,1752772240406,-500.0,0.00016676,2]
[372820068,1752772240415,-500.0,0.00016676,2]
[372820069,1752772240424,-500.0,0.00016676,2]
[372820070,1752772240434,-460.0,0.00016676,2]
[372820071,1752772240443,-460.0,0.00016677,2]
[372820072,1752772240453,-460.0,0.00016677,2]
[372820073,1752772240463,-460.0,0.00016677,2]
[372820074,1752772240473,-460.0,0.00016677,2]
[372820075,1752772240484,-312.81081687,0.00016677,2]
[372820076,1752772240494,-500.0,0.00016677,2]
[372820077,1752772240505,-460.0,0.00016677,2]
[372820078,1752772240515,-460.0,0.00016677,2]
[372820079,1752772240524,-460.0,0.00016677,2]
[372820080,1752772240534,-460.0,0.00016677,2]
[372820081,1752772240543,-460.0,0.00016677,2]
[372820082,1752772240553,-460.0,0.00016677,2]
[372820083,1752772240562,-192.87853338,0.00016677,2]
[372820084,1752772240571,-460.0,0.00016677,2]
[372820085,1752772240581,-460.0,0.00016677,2]
[372820086,1752772240590,-204.70150655,0.00016677,2]
[372820112,1752772242925,-255.29849345,0.00016677,2]
[372820114,1752772242935,-460.0,0.00016677,2]
[372820115,1752772242944,-460.0,0.00016677,2]
[372820117,1752772242954,-460.0,0.00016677,2]
[372820118,1752772242963,-368.414591,0.00016677,2]
[372820120,1752772242973,-460.0,0.00016677,2]
[372820122,1752772242982,-460.0,0.00016677,2]
[372820124,1752772242991,-460.0,0.00016677,2]
[372820125,1752772243001,-224.26,0.00016677,2]
[372820127,1752772243010,-460.0,0.00016677,2]
[372820129,1752772243020,-460.0,0.00016677,2]
[372820131,1752772243030,-385.84282455,0.00016677,2]
[372820144,1752772246064,-74.15717545,0.00016677,2]
[372820145,1752772246074,-460.0,0.00016677,2]
[372820147,1752772246083,-460.0,0.00016677,2]
[372820148,1752772246094,-460.0,0.00016677,2]
[372820149,1752772246106,-460.0,0.00016677,2]
[372820150,1752772246116,-437.93175216,0.00016677,2]
[372820152,1752772273189,-3000.0,0.0002301,30]
[372820153,1752772465195,208.21383998,0.00016677,7]
[372820154,1752772479963,2235.74933989,0.00016581,2]
[372820155,1752772479986,10000.0,0.00016581,2]
[372820156,1752772480008,505.60131559,0.00016581,2]
[372820157,1752772515126,150.0,0.00014991,2]
[372820159,1752772615529,9344.39868441,0.00015676,2]
[372820160,1752772615552,10000.0,0.00015676,2]
[372820161,1752772615576,5555.60131559,0.00015676,2]
[372820163,1752772701259,614.637701,0.00013699,2]
[372820164,1752772740262,3829.76098341,0.0001658,2]
[372820165,1752772740303,4664.47278691,0.0001658,2]
[372820167,1752772770739,4578.27463547,0.0001658,2]
[372820168,1752772866939,757.25257762,0.00016577,2]
[372820169,1752772866963,10000.0,0.00016577,2]
[372820170,1752772866987,10000.0,0.00016577,2]
[372820171,1752772867014,10000.0,0.00016577,2]
[372820172,1752772867039,10000.0,0.00016577,2]
[372820173,1752772867064,10000.0,0.00016577,2]
[372820174,1752772867088,10000.0,0.00016577,2]
[372820175,1752772867112,10000.0,0.00016577,2]
[372820176,1752772867135,10000.0,0.00016577,2]
[372820177,1752772867161,4932.32406498,0.00016577,2]
[372820178,1752772927843,3340.03584039,0.00016391,2]
[372820183,1752772968411,1727.64009463,0.00015775,2]
[372820184,1752772968436,3179.4440206,0.00015775,2]
[372820207,1752773030244,6820.5559794,0.00016576,2]
[372820208,1752773030269,10000.0,0.00016576,2]
[372820209,1752773030295,10000.0,0.00016576,2]
[372820210,1752773030319,10000.0,0.00016576,2]
[372820211,1752773030343,10000.0,0.00016576,2]
[372820212,1752773030366,10000.0,0.00016576,2]
[372820213,1752773030390,10000.0,0.00016576,2]
[372820214,1752773030414,10000.0,0.00016576,2]
[372820215,1752773030438,10000.0,0.00016576,2]
[372820216,1752773030461,10000.0,0.00016576,2]
[372820217,1752773030485,10000.0,0.00016576,2]
[372820218,1752773030508,10000.0,0.00016576,2]
[372820219,1752773030538,10000.0,0.00016576,2]
[372820225,1752773227910,-300.0,0.00016574,2]
[372820226,1752773227944,-238.0,0.00016574,2]
[372820227,1752773227976,-1200.0,0.00016574,2]
[372820228,1752773228005,-700.0,0.00016574,2]
[372820229,1752773230657,-124.0,0.00016574,2]
[372820230,1752773230691,-500.0,0.00016575,2]
[372820231,1752773230727,-500.0,0.00016575,2]
[372820232,1752773230761,-500.0,0.00016575,2]
[372820233,1752773230794,-500.0,0.00016575,2]
[372820234,1752773230826,-252.0,0.00016575,2]
[372820235,1752773230990,-248.0,0.00016575,2]
[372820236,1752773231026,-500.0,0.00016575,2]
[372820237,1752773231057,-500.0,0.00016575,2]
[372820238,1752773231088,-500.0,0.00016575,2]
[372820239,1752773231124,-500.54618362,0.00016575,2]
[372820240,1752773231155,-2.90763276,0.00016575,2]
[372820241,1752773231313,-497.09236724,0.00016575,2]
[372820242,1752773231346,-500.0,0.00016575,2]
[372820243,1752773231377,-500.0,0.00016575,2]
[372820244,1752773231409,-500.0,0.00016575,2]
[372820245,1752773231447,-500.0,0.00016575,2]
[372820246,1752773231512,-500.0,0.00016575,2]
[372820247,1752773231547,-594.14251994,0.00016575,2]
[372820248,1752773231592,-500.0,0.00016575,2]
[372820249,1752773231624,-500.0,0.00016575,2]
[372820250,1752773231656,-311.71496012,0.00016575,2]
[372820251,1752773231812,-188.28503988,0.00016575,2]
[372820252,1752773231857,-251.7773508,0.00016575,2]
[372820253,1752773231899,-500.0,0.00016575,2]
[372820254,1752773231943,-500.0,0.00016575,2]
[372820255,1752773231989,-450.0,0.00016575,2]
[372820256,1752773232030,-500.0,0.00016575,2]
[372820257,1752773232249,-500.0,0.00016575,2]
[372820258,1752773232287,-500.0,0.00016575,2]
[372820296,1752773432168,-272.60535273,0.00016575,2]
[372820298,1752773432177,-500.0,0.00016575,2]
[372820300,1752773432187,-290.0,0.00016575,2]
[372820302,1752773432197,-300.0,0.00016575,2]
[372820304,1752773432208,-217.0,0.00016575,2]
[372820305,1752773432217,-1433.97416222,0.00016576,2]
[372820306,1752773432229,-7232.1274669,0.00016576,2]
[372820307,1752773432253,-1045.01754057,0.00016576,2]
[372820328,1752773437993,-66455.205798,0.00016576,2]
[372820330,1752773438003,-155.0,0.00016576,2]
[372820332,1752773438013,-5665.65882967,0.00016576,2]
[372820334,1752773438022,-897.77,0.00016665,3]
[372820336,1752773438032,-357.2,0.00016665,3]
[372820337,1752773438041,-178.6,0.00016665,3]
[372820338,1752773438050,-535.82,0.00016665,3]
[372820339,1752773438059,-1196.97,0.00016666,3]
[372820341,1752773438068,-598.48,0.00016666,3]
[372820343,1752773438078,-299.24,0.00016666,3]
[372820345,1752773438087,-500.0,0.00016673,2]
[372820346,1752773438097,-500.0,0.00016673,2]
[372820348,1752773438106,-500.0,0.00016673,2]
[372820350,1752773438117,-326.6286965,0.00016673,2]
[372820352,1752773438126,-502.60087761,0.00016673,2]
[372820353,1752773438135,-291.21452766,0.00016673,2]
[372820355,1752773438145,-504.22089586,0.00016673,2]
[372820357,1752773438154,-500.0,0.00016673,2]
[372820359,1752773438167,-513.88759956,0.00016673,2]
[372820361,1752773438176,-500.59312852,0.00016673,2]
[372820362,1752773438185,-515.48631446,0.00016673,2]
[372820365,1752773438194,-500.0,0.00016673,2]
[372820368,1752773438204,-501.02957041,0.00016673,2]
[372820370,1752773438214,-500.0,0.00016673,2]
[372820371,1752773438223,-512.98621668,0.00016673,2]
[372820373,1752773438233,-500.0,0.00016673,2]
[372820375,1752773438243,-500.0,0.00016673,2]
[372820377,1752773438252,-513.61261543,0.00016673,2]
[372820378,1752773438262,-504.73741654,0.00016673,2]
[372820380,1752773438271,-500.0,0.00016673,2]
[372820382,1752773438280,-500.0,0.00016673,2]
[372820384,1752773438289,-460.0,0.00016675,2]
[372820385,1752773438299,-463.0276002,0.00016675,2]
[372820387,1752773438309,-460.0,0.00016675,2]
[372820389,1752773438318,-460.0,0.00016675,2]
[372820391,1752773438327,-460.0,0.00016675,2]
[372820393,1752773438337,-591.26,0.00016675,2]
[372820394,1752773438346,-460.0,0.00016675,2]
[372820396,1752773438356,-460.0,0.00016675,2]
[372820398,1752773438366,-460.0,0.00016675,2]
[372820400,1752773438376,-500.0,0.00016675,2]
[372820401,1752773438385,-466.3493268,0.00016675,2]
[372820403,1752773438394,-462.18515848,0.00016675,2]
[372820405,1752773438404,-460.0,0.00016675,2]
[372820407,1752773438413,-460.0,0.00016675,2]
[372820408,1752773438423,-460.0,0.00016675,2]
[372820422,1752773438573,-460.0,0.00016675,2]
[372820424,1752773438583,-462.30863829,0.00016675,2]
[372820426,1752773438593,-464.95365107,0.00016675,2]
[372820428,1752773438603,-460.0,0.00016675,2]
[372820430,1752773438613,-460.0,0.00016675,2]
[372820431,1752773438622,-460.0,0.00016675,2]
[372820433,1752773438631,-460.0,0.00016675,2]
[372820435,1752773438641,-460.0,0.00016675,2]
[372820437,1752773438650,-460.0,0.00016675,2]
[372820439,1752773438659,-460.0,0.00016675,2]
[372820441,1752773438669,-292.71564757,0.00016675,2]
[372820442,1752773438678,-460.0,0.00016675,2]
[372820444,1752773438687,-460.0,0.00016675,2]
[372820446,1752773438697,-577.80975664,0.00016675,2]
[372820447,1752773438707,-460.0,0.00016675,2]
[372820449,1752773438716,-460.0,0.00016675,2]
[372820451,1752773438726,-460.0,0.00016675,2]
[372820453,1752773438735,-460.0,0.00016675,2]
[372820455,1752773438745,-460.0,0.00016675,2]
[372820457,1752773438754,-500.0,0.00016675,2]
[372820458,1752773438763,-460.0,0.00016675,2]
[372820460,1752773438773,-460.0,0.00016675,2]
[372820462,1752773438782,-1028.0,0.00016675,2]
[372820464,1752773438792,-151.0,0.00016675,2]
[372820466,1752773438801,-500.0,0.00016675,2]
[372820468,1752773438811,-500.0,0.00016675,2]
[372820469,1752773438821,-151.0,0.00016675,2]
[372820471,1752773438830,-500.0,0.00016675,2]
[372820473,1752773438839,-500.0,0.00016675,2]
[372820475,1752773438849,-151.0,0.00016675,2]
[372820477,1752773438858,-151.0,0.00016675,2]
[372820479,1752773438869,-460.0,0.00016675,2]
[372820480,1752773438879,-323.33328266,0.00016675,2]
[372820483,1752773438898,-136.66671734,0.00016675,2]
[372820485,1752773438910,-460.0,0.00016675,2]
[372820487,1752773438919,-460.0,0.00016675,2]
[372820489,1752773438928,-461.90675008,0.00016675,2]
[372820491,1752773438938,-460.0,0.00016675,2]
[372820493,1752773438947,-460.0,0.00016675,2]
[372820494,1752773438956,-464.20384067,0.00016675,2]
[372820496,1752773438965,-460.0,0.00016675,2]
[372820498,1752773438975,-460.76796438,0.00016675,2]
[372820500,1752773438984,-460.0,0.00016675,2]
[372820502,1752773438993,-461.53608633,0.00016675,2]
[372820504,1752773439002,-460.0,0.00016675,2]
[372820506,1752773439012,-460.0,0.00016675,2]
[372820507,1752773439020,-460.0,0.00016675,2]
[372820509,1752773439030,-1795.63,0.00016675,2]
[372820511,1752773439039,-460.0,0.00016675,2]
[372820513,1752773439048,-460.0,0.00016675,2]
[372820515,1752773439058,-460.0,0.00016675,2]
[372820517,1752773439067,-460.0,0.00016675,2]
[372820518,1752773439076,-460.0,0.00016675,2]
[372820520,1752773439085,-460.0,0.00016675,2]
[372820522,1752773439095,-487.71967378,0.00016675,2]
[372820524,1752773439104,-460.0,0.00016675,2]
[372820526,1752773439114,-460.0,0.00016675,2]
[372820528,1752773439124,-460.0,0.00016675,2]
[372820529,1752773439133,-461.40700279,0.00016675,2]
[372820531,1752773439142,-1160.32,0.00016675,2]
[372820533,1752773439152,-460.0,0.00016675,2]
[372820535,1752773439163,-460.0,0.00016675,2]
[372820537,1752773439174,-460.0,0.00016675,2]
[372820538,1752773439183,-460.0,0.00016675,2]
[372820540,1752773439193,-217.75396734,0.00016675,2]
[372820542,1752773439203,-460.0,0.00016675,2]
[372820544,1752773439212,-460.0,0.00016675,2]
[372820546,1752773439221,-460.0,0.00016675,2]
[372820547,1752773439230,-460.0,0.00016675,2]
[372820549,1752773439241,-460.0,0.00016675,2]
[372820551,1752773439250,-460.0,0.00016675,2]
[372820553,1752773439260,-460.0,0.00016675,2]
[372820555,1752773439270,-460.0,0.00016675,2]
[372820556,1752773439279,-460.0,0.00016675,2]
[372820558,1752773439288,-460.0,0.00016675,2]
[372820560,1752773439297,-460.0,0.00016675,2]
[372820562,1752773439307,-460.0,0.00016675,2]
[372820564,1752773439317,-519.01404181,0.00016675,2]
[372820565,1752773439326,-460.0,0.00016675,2]
[372820567,1752773439336,-460.0,0.00016675,2]
[372820569,1752773439345,-462.34844235,0.00016675,2]
[372820571,1752773439355,-460.0,0.00016675,2]
[372820573,1752773439366,-460.0,0.00016675,2]
[372820574,1752773439376,-460.0,0.00016675,2]
[372820576,1752773439385,-462.79777939,0.00016675,2]
[372820578,1752773439394,-1158.91,0.00016675,2]
[372820580,1752773439404,-460.0,0.00016675,2]
[372820582,1752773439413,-460.0,0.00016675,2]
[372820584,1752773439422,-451.74557173,0.00016675,2]
[372820585,1752773439432,-460.0,0.00016675,2]
[372820587,1752773439441,-460.0,0.00016675,2]
[372820589,1752773439450,-460.0,0.00016675,2]
[372820591,1752773439459,-460.0,0.00016675,2]
[372820593,1752773439468,-460.0,0.00016675,2]
[372820594,1752773439477,-460.0,0.00016675,2]
[372820596,1752773439487,-1432.68,0.00016675,2]
[372820598,1752773439497,-460.0,0.00016675,2]
[372820600,1752773439506,-460.0,0.00016675,2]
[372820602,1752773439515,-346.24343804,0.00016675,2]
[372820604,1752773439525,-151.0,0.00016675,2]
[372820605,1752773439533,-151.0,0.00016675,2]
[372820607,1752773439542,-460.0,0.00016675,2]
[372820609,1752773439552,-151.0,0.00016675,2]
[372820611,1752773439561,-151.41970091,0.00016675,2]
[372820613,1752773439571,-460.0,0.00016675,2]
[372820615,1752773439580,-151.0,0.00016675,2]
[372820616,1752773439590,-151.0,0.00016675,2]
[372820618,1752773439599,-460.0,0.00016675,2]
[372820620,1752773439608,-460.0,0.00016675,2]
[372820622,1752773439619,-460.0,0.00016675,2]
[372820624,1752773439628,-460.0,0.00016675,2]
[372820626,1752773439638,-460.3624882,0.00016675,2]
[372820628,1752773439647,-460.0,0.00016675,2]
[372820630,1752773439656,-460.0,0.00016675,2]
[372820632,1752773439665,-460.0,0.00016675,2]
[372820634,1752773439674,-460.0,0.00016675,2]
[372820636,1752773439684,-500.0,0.00016675,2]
[372820638,1752773439693,-460.0,0.00016675,2]
[372820639,1752773439702,-500.0,0.00016675,2]
[372820641,1752773439712,-460.0,0.00016675,2]
[372820643,1752773439721,-460.0,0.00016675,2]
[372820645,1752773439731,-460.0,0.00016675,2]
[372820647,1752773439740,-460.0,0.00016675,2]
[372820649,1752773439750,-460.0,0.00016675,2]
[372820650,1752773439759,-460.0,0.00016675,2]
[372820652,1752773439768,-461.60250096,0.00016675,2]
[372820654,1752773439778,-460.0,0.00016675,2]
[372820656,1752773439787,-460.0,0.00016675,2]
[372820658,1752773439797,-460.0,0.00016675,2]
[372820659,1752773439806,-460.0,0.00016675,2]
[372820661,1752773439815,-460.0,0.00016675,2]
[372820663,1752773439824,-460.0,0.00016675,2]
[372820665,1752773439833,-936.14,0.00016675,2]
[372820667,1752773439843,-460.57212985,0.00016675,2]
[372820669,1752773439852,-460.0,0.00016675,2]
[372820671,1752773439861,-460.0,0.00016675,2]
[372820672,1752773439870,-460.0,0.00016675,2]
[372820674,1752773439880,-460.0,0.00016675,2]
[372820676,1752773439889,-460.0,0.00016675,2]
[372820678,1752773439898,-460.0,0.00016675,2]
[372820680,1752773439908,-460.0,0.00016675,2]
[372820681,1752773439918,-460.0,0.00016675,2]
[372820683,1752773439927,-460.0,0.00016675,2]
[372820685,1752773439936,-460.8787277,0.00016675,2]
[372820687,1752773439945,-2671.87,0.00016675,2]
[372820689,1752773439954,-460.0,0.00016675,2]
[372820691,1752773439963,-797.47,0.00016675,2]
[372820693,1752773439972,-460.0,0.00016675,2]
[372820694,1752773439981,-460.0,0.00016675,2]
[372820696,1752773439991,-460.0,0.00016675,2]
[372820698,1752773440001,-460.0,0.00016675,2]
[372820700,1752773440010,-460.0,0.00016675,2]
[372820702,1752773440019,-151.0,0.00016675,2]
[372820704,1752773440028,-460.0,0.00016675,2]
[372820705,1752773440038,-460.0,0.00016675,2]
[372820707,1752773440046,-460.0,0.00016675,2]
[372820709,1752773440056,-460.0,0.00016675,2]
[372820711,1752773440065,-460.0,0.00016675,2]
[372820713,1752773440074,-460.0,0.00016675,2]
[372820715,1752773440083,-151.55193473,0.00016675,2]
[372820717,1752773440092,-460.0,0.00016675,2]
[372820718,1752773440102,-500.0,0.00016675,2]
[372820720,1752773440111,-151.0,0.00016675,2]
[372820722,1752773440122,-460.0,0.00016675,2]
[372820724,1752773440131,-460.0,0.00016675,2]
[372820726,1752773440141,-151.0,0.00016675,2]
[372820728,1752773440150,-500.0,0.00016675,2]
[372820730,1752773440160,-816.79,0.00016675,2]
[372820731,1752773440173,-460.0,0.00016675,2]
[372820733,1752773440182,-461.00008369,0.00016675,2]
[372820735,1752773440192,-460.0,0.00016675,2]
[372820737,1752773440201,-460.0,0.00016675,2]
[372820739,1752773440211,-460.0,0.00016675,2]
[372820741,1752773440220,-460.0,0.00016675,2]
[372820743,1752773440229,-460.87703867,0.00016675,2]
[372820744,1752773440239,-460.0,0.00016675,2]
[372820746,1752773440250,-460.84994658,0.00016675,2]
[372820748,1752773440260,-460.0,0.00016675,2]
[372820750,1752773440270,-460.0,0.00016675,2]
[372820752,1752773440279,-460.0,0.00016675,2]
[372820754,1752773440288,-805.05,0.00016675,2]
[372820756,1752773440297,-460.0,0.00016675,2]
[372820757,1752773440306,-460.0,0.00016675,2]
[372820759,1752773440315,-460.0,0.00016675,2]
[372820761,1752773440324,-460.0,0.00016675,2]
[372820763,1752773440334,-461.24939302,0.00016675,2]
[372820765,1752773440344,-460.0,0.00016675,2]
[372820766,1752773440353,-460.0,0.00016675,2]
[372820768,1752773440363,-460.0,0.00016675,2]
[372820770,1752773440373,-460.0,0.00016675,2]
[372820772,1752773440382,-460.0,0.00016675,2]
[372820774,1752773440392,-461.65199903,0.00016675,2]
[372820776,1752773440401,-460.0,0.00016675,2]
[372820778,1752773440411,-460.0,0.00016675,2]
[372820780,1752773440423,-254.29528754,0.00016676,2]
[372820782,1752773440433,-460.0,0.00016676,2]
[372820784,1752773440442,-156.371078,0.00016676,2]
[372820785,1752773440451,-460.0,0.00016676,2]
[372820787,1752773440461,-460.0,0.00016676,2]
[372820789,1752773440471,-460.0,0.00016676,2]
[372820791,1752773440480,-460.0,0.00016676,2]
[372820793,1752773440489,-460.0,0.00016676,2]
[372820795,1752773440498,-460.0,0.00016676,2]
[372820797,1752773440508,-184.22711808,0.00016676,2]
[372820799,1752773440518,-460.0,0.00016676,2]
[372820800,1752773440527,-209.86386935,0.00016676,2]
[372820802,1752773440536,-460.0,0.00016676,2]
[372820804,1752773440546,-376.84467449,0.00016676,2]
[372820806,1752773440555,-460.0,0.00016676,2]
[372820808,1752773440565,-460.0,0.00016676,2]
[372820810,1752773440575,-505.27191865,0.00016676,2]
[372820812,1752773440585,-460.0,0.00016676,2]
[372820814,1752773440593,-460.0,0.00016676,2]
[372820815,1752773440603,-439.57985123,0.00016676,2]
[372820817,1752773440613,-468.11464881,0.00016676,2]
[372820819,1752773440623,-460.0,0.00016676,2]
[372820821,1752773440633,-460.0,0.00016676,2]
[372820823,1752773440645,-460.0,0.00016676,2]
[372820825,1752773440654,-461.83898035,0.00016676,2]
[372820827,1752773440663,-461.29094081,0.00016676,2]
[372820829,1752773440673,-213.96772786,0.00016676,2]
[372820830,1752773440682,-494.24396985,0.00016676,2]
[372820832,1752773440692,-460.0,0.00016676,2]
[372820834,1752773440701,-460.0,0.00016676,2]
[372820836,1752773440711,-462.16082146,0.00016676,2]
[372820838,1752773440721,-461.87861708,0.00016676,2]
[372820840,1752773440730,-464.3030722,0.00016676,2]
[372820842,1752773440739,-460.0,0.00016676,2]
[372820844,1752773440748,-460.0,0.00016676,2]
[372820845,1752773440758,-460.0,0.00016676,2]
[372820847,1752773440767,-460.0,0.00016676,2]
[372820849,1752773440776,-460.0,0.00016676,2]
[372820851,1752773440786,-460.0,0.00016676,2]
[372820853,1752773440795,-151.0,0.00016676,2]
[372820855,1752773440805,-461.40730842,0.00016676,2]
[372820857,1752773440814,-151.0,0.00016676,2]
[372820859,1752773440823,-462.11148484,0.00016676,2]
[372820861,1752773440833,-245.50016698,0.00016676,2]
[372820862,1752773440843,-350.96584799,0.00016676,2]
[372820864,1752773440853,-180.82659691,0.00016676,2]
[372820866,1752773440862,-462.40065176,0.00016676,2]
[372820868,1752773440873,-462.44371155,0.00016676,2]
[372820870,1752773440883,-460.0,0.00016676,2]
[372820872,1752773440892,-460.0,0.00016676,2]
[372820874,1752773440901,-460.0,0.00016676,2]
[372820876,1752773440910,-460.0,0.00016676,2]
[372820877,1752773440919,-460.0,0.00016676,2]
[372820879,1752773440929,-460.0,0.00016676,2]
[372820881,1752773440938,-460.0,0.00016676,2]
[372820883,1752773440948,-557.4939387,0.00016676,2]
[372820885,1752773440957,-460.0,0.00016676,2]
[372820887,1752773440967,-461.45609941,0.00016676,2]
[372820889,1752773440976,-460.0,0.00016676,2]
[372820891,1752773440985,-463.64171369,0.00016676,2]
[372820892,1752773440995,-460.0,0.00016676,2]
[372820894,1752773441004,-460.0,0.00016676,2]
[372820896,1752773441014,-460.0,0.00016676,2]
[372820898,1752773441024,-460.0,0.00016676,2]
[372820900,1752773441033,-460.0,0.00016676,2]
[372820902,1752773441042,-460.0,0.00016676,2]
[372820904,1752773441049,-462.93410712,0.00016676,2]
[372820906,1752773441056,-503.82870213,0.00016676,2]
[372820908,1752773441064,-461.12660715,0.00016676,2]
[372820910,1752773441072,-460.0,0.00016676,2]
[372820912,1752773441082,-462.67439443,0.00016676,2]
[372820914,1752773441089,-461.68123563,0.00016676,2]
[372820915,1752773441097,-460.0,0.00016676,2]
[372820917,1752773441105,-460.0,0.00016676,2]
[372820919,1752773441112,-460.0,0.00016676,2]
[372820921,1752773441123,-456.89551138,0.00016676,2]
[372820923,1752773441132,-460.0,0.00016676,2]
[372820925,1752773441141,-460.0,0.00016676,2]
[372820927,1752773441151,-463.64204059,0.00016676,2]
[372820928,1752773441161,-460.0,0.00016676,2]
[372820930,1752773441173,-562.24029966,0.00016676,2]
[372820932,1752773441182,-460.0,0.00016676,2]
[372820934,1752773441192,-460.0,0.00016676,2]
[372820936,1752773441202,-460.0,0.00016676,2]
[372820938,1752773441211,-580.03797569,0.00016676,2]
[372820940,1752773441220,-460.0,0.00016676,2]
[372820942,1752773441230,-467.25065523,0.00016676,2]
[372820944,1752773441239,-460.0,0.00016676,2]
[372820945,1752773441249,-460.0,0.00016676,2]
[372820957,1752773441371,-462.92425957,0.00016676,2]
[372820959,1752773441382,-460.0,0.00016676,2]
[372820961,1752773441392,-500.0,0.00016676,2]
[372820963,1752773441401,-500.0,0.00016676,2]
[372820965,1752773441411,-460.0,0.00016676,2]
[372820967,1752773441421,-460.0,0.00016676,2]
[372820969,1752773441430,-151.0,0.00016676,2]
[372820971,1752773441440,-463.032645,0.00016676,2]
[372820973,1752773441449,-460.0,0.00016676,2]
[372820975,1752773441462,-151.0,0.00016676,2]
[372820977,1752773441473,-460.0,0.00016676,2]
[372820979,1752773441483,-151.0,0.00016676,2]
[372820981,1752773441492,-500.0,0.00016676,2]
[372820982,1752773441503,-461.16527162,0.00016676,2]
[372820984,1752773441512,-151.0,0.00016676,2]
[372820986,1752773441522,-462.46344954,0.00016676,2]
[372820988,1752773441531,-151.0,0.00016676,2]
[372820990,1752773441541,-460.0,0.00016676,2]
[372820992,1752773441550,-461.56715771,0.00016676,2]
[372820994,1752773441559,-460.0,0.00016676,2]
[372820996,1752773441568,-477.66095415,0.00016676,2]
[372820998,1752773441577,-460.0,0.00016676,2]
[372820999,1752773441586,-463.56044644,0.00016676,2]
[372821001,1752773441595,-460.0,0.00016676,2]
[372821003,1752773441605,-460.0,0.00016676,2]
[372821005,1752773441614,-460.0,0.00016676,2]
[372821007,1752773441628,-460.0,0.00016676,2]
[372821009,1752773441637,-460.0,0.00016676,2]
[372821011,1752773441647,-460.0,0.00016676,2]
[372821013,1752773441656,-460.0,0.00016676,2]
[372821014,1752773441665,-417.10420488,0.00016676,2]
[372821015,1752773441675,-460.0,0.00016676,2]
[372821016,1752773441684,-461.74913352,0.00016676,2]
[372821017,1752773441693,-460.0,0.00016676,2]
[372821018,1752773441702,-460.0,0.00016676,2]
[372821019,1752773441711,-460.0,0.00016676,2]
[372821020,1752773441720,-461.46124485,0.00016676,2]
[372821021,1752773441729,-151.93086154,0.00016676,2]
[372821022,1752773441738,-151.0,0.00016676,2]
[372821023,1752773441748,-460.0,0.00016676,2]
[372821024,1752773441757,-1238.0,0.00016676,2]
[372821025,1752773441766,-461.54557077,0.00016676,2]
[372821026,1752773441776,-460.0,0.00016676,2]
[372821027,1752773441785,-151.0,0.00016676,2]
[372821028,1752773441794,-460.0,0.00016676,2]
[372821029,1752773441803,-461.93260627,0.00016676,2]
[372821030,1752773441812,-151.0,0.00016676,2]